[Event "Austrian Bundesliga 2023-24"]
[Site "Austria"]
[Date "2024.03.21"]
[Round "8.26"]
[White "Zilka, Stepan"]
[Black "Koelle, Tobias"]
[Result "1/2-1/2"]
[ECO "E04"]
[WhiteElo "2589"]
[BlackElo "2460"]
[Annotator "TA"]
[PlyCount "52"]
[EventDate "2023.10.21"]
[EventType "team-tourn"]
[EventCountry "AUT"]
[SourceTitle "playchess.com"]
[Source "ChessBase"]
[SourceQuality "1"]
[TimeControl "40/5400+30:1800+30"]

{[%evp 10,52,36,0,0,0,-7,-31,-27,-68,-41,-29,-44,-42,-40,-93,-104,-120,-55,-63,-75,-87,-61,-83,-75,-78,0,0,0,0,0,0,27,68,59,32,18,0,0,0,17,0,0,0,19]} 1. d4 {[%emt 0:00:06]} Nf6 {[%emt 0:00:09]} 2. c4 {[%emt 0:00:07]} e6 {[%emt 0:00:06]} 3. Nf3 {[%emt 0:00:06]} d5 {[%emt 0:00:08]} 4. g3 {[%emt 0:00:11]} dxc4 {[%emt 0:00:23]} 5. Bg2 {[%emt 0:00:06]} Nbd7 {[%emt 0:00:36]} 6. Nbd2 {[%emt 0:04:00][%mdl 1024] White has compensation.} b5 {[%emt 0:10:54] next ...Bb7 is good for Black.} 7. a4 {[%emt 0:06:30]} c6 {[%emt 0:03:24]} 8. O-O {[%emt 0:00:05]} Bb7 {[%emt 0:02:59] Black is slightly better.} 9. e4 {[%emt 0:02:42]} Be7 {[%emt 0:02:25]} 10. e5 {[%emt 0:03:48]} Nd5 {[%emt 0:00:13]} 11. Ne4 {[%emt 0:00:11]} h6 {[%emt 0:03:30] Prevents Bg5} 12. h4 {[%emt 0:08:04]} ({White should play} 12. Nh4 $15) 12... a6 $17 {[%emt 0:02:37]} 13. Re1 {[%emt 0:17:53]} c5 {[%emt 0:05:04]} (13... Qc7 $17 14. Nd6+ Bxd6 15. exd6 Qxd6) 14. Nd6+ $1 $15 {[%emt 0:06:20]} Bxd6 {[%emt 0:00:08]} 15. exd6 {[%emt 0:00:02]} Qb6 {[%emt 0:07:47]} 16. Ne5 {[%emt 0:06:12]} cxd4 {[%emt 0:16:17]} ({Of course not} 16... Qxd6 $6 17. dxc5 Nxc5 (17... Qxc5 18. Nxd7 Kxd7 19. Be3 $16) 18. axb5 axb5 19. Rxa8+ Bxa8 20. Qg4 $11) 17. axb5 {[%emt 0:05:18]} Nxe5 {[%emt 0:09:11]} (17... axb5 $17 18. Rxa8+ Bxa8) 18. Rxe5 $11 {[%emt 0:00:05]} axb5 {[%emt 0:03:27]} 19. Rxa8+ {[%emt 0:01:26]} Bxa8 {[%emt 0:00:03]} 20. Qg4 {[%emt 0:06:47]} Qxd6 {[%emt 0:02:52]} (20... Kf8 $5 21. Rxe6 fxe6 22. Qxe6 Qd8 (22... Qc6 23. Qf5+ Ke8 24. Qe5+ Kf7 25. Qf5+ Ke8 26. Qe5+ Kf7 27. Qf5+ Ke8 $11) 23. Bxd5 Bxd5 24. Qxd5 Rg8 $11) 21. Qxg7 {[%emt 0:01:38]} Qf8 {[%emt 0:00:16]} 22. Qg4 {[%emt 0:00:36]} Qc5 {[%emt 0:01:40]} 23. Qg7 {[%emt 0:02:12] The position is equal.} Qf8 {[%emt 0:00:28]} 24. Qg4 {[%emt 0:00:04]} Qc5 {[%emt 0:00:17]} 25. Qg7 {[%emt 0:00:14][%csl LRh6,LRh8]} Qf8 {[%emt 0:00:18]} 26. Qg4 {[%emt 0:00:11]} Qc5 $1 {Weighted Error Value: White=0.11 (very precise) /Black=0.16 (very precise) .  Mistake:       	White=1     	Black=2      Inaccurate:     	White=1     	Black=2      OK:         	White=8     	Black=10     Best:        	White=1     	Black=3      Strong:       	White=1     	Black=1} 1/2-1/2

[Event "Austrian Bundesliga 2023-24"]
[Site "Austria"]
[Date "2024.03.21"]
[Round "8.27"]
[White "Deuer, Marius"]
[Black "Hracek, Zbynek"]
[Result "1/2-1/2"]
[ECO "E46"]
[WhiteElo "2430"]
[BlackElo "2542"]
[Annotator "TA"]
[PlyCount "99"]
[EventDate "2023.10.21"]
[EventType "team-tourn"]
[EventCountry "AUT"]
[SourceTitle "playchess.com"]
[Source "ChessBase"]
[SourceQuality "1"]
[TimeControl "40/5400+30:1800+30"]

{[%evp 13,99,0,0,-3,4,8,9,10,14,16,15,8,11,5,11,10,20,18,8,0,0,-11,0,0,0,14,23,17,46,47,42,25,21,31,175,163,157,158,162,171,162,170,170,170,170,170,169,108,116,101,108,104,116,116,142,17,12,9,6,0,0,0,0,0,0,0,0,0,0,0,0,0,0,0,2,6,8,0,0,0,0,0,0,0,0,0,0,0]} 1. d4 {[%emt 0:00:03]} Nf6 {[%emt 0:00:06]} 2. c4 {[%emt 0:00:14]} e6 {[%emt 0:00:06]} 3. Nc3 {[%emt 0:00:04]} Bb4 {[%emt 0:00:09]} 4. e3 {[%emt 0:00:05]} O-O {[%emt 0:00:08]} 5. Nge2 {[%emt 0:00:03]} Re8 {[%emt 0:01:06]} 6. a3 {[%emt 0:00:27]} Bf8 {[%emt 0:00:06]} 7. Ng3 {[%emt 0:00:12]} d5 {[%emt 0:00:20]} 8. Be2 {[%emt 0:00:08]} dxc4 {[%emt 0:05:53]} 9. O-O {[%emt 0:00:26]} c5 {[%emt 0:02:05]} 10. dxc5 {[%emt 0:02:07]} Nbd7 {[%emt 0:08:31]} 11. Bxc4 {[%emt 0:07:19]} Nxc5 {[%emt 0:01:59]} 12. b4 {[%emt 0:19:23]} Ncd7 {[%emt 0:00:12]} 13. Bb2 {[%emt 0:00:10]} a6 {[%emt 0:18:32]} 14. Nce4 {[%emt 0:09:46]} b5 {[%emt 0:02:59] aiming for ...Nxe4.} 15. Bd3 {[%emt 0:08:11]} Bb7 {[%emt 0:01:56]} 16. Qe2 {[%emt 0:00:52]} Qe7 {[%emt 0:16:47]} 17. Rac1 {[%emt 0:06:05]} Rac8 {[%emt 0:00:55] Wards off Rc7} 18. Rfd1 {[%emt 0:01:31]} Nxe4 {[%emt 0:12:26]} 19. Nxe4 {[%emt 0:07:21]} Rxc1 {[%emt 0:04:08]} 20. Rxc1 {[%emt 0:04:10]} Rc8 {[%emt 0:00:19] Repels Rc7} 21. Rxc8 {[%emt 0:03:53]} Bxc8 {[%emt 0:00:00]} 22. Qc2 {[%emt 0:00:30]} Bb7 {[%emt 0:11:34]} 23. Qc7 {[%emt 0:02:21]} Nf6 {[%emt 0:05:27]} (23... Ba8 $14) 24. Nxf6+ $18 {[%emt 0:04:48]} gxf6 {[%emt 0:00:02]} 25. Qg3+ {[%emt 0:00:19]} Bg7 {[%emt 0:00:05]} 26. Qb8+ {[%emt 0:03:06]} Bf8 {[%emt 0:00:01] [#]} 27. Bd4 {[%emt 0:00:45] Black must now prevent Bc5.} Bc6 {[%emt 0:00:21] [#]} 28. Be4 $1 {[%emt 0:00:48][%mdl 512]} Be8 {[%emt 0:02:27]} (28... Bxe4 $2 {too greedy.} 29. Bc5 Kg7 30. Bxe7 $18) 29. h3 {[%emt 0:07:28]} h6 {[%emt 0:00:05][%cal Bh7h6,Bh6h5][%mdl 32]} 30. Qb7 {[%emt 0:03:20]} (30. Bf3 $18) 30... f5 $16 {[%emt 0:01:58]} 31. Qxe7 {[%emt 0:02:09]} Bxe7 {[%emt 0:00:01][%mdl 4096] Endgame. KBB-KBB} 32. Bb7 {[%emt 0:00:07]} h5 {[%emt 0:03:55]} 33. g3 {[%emt 0:02:26]} Bd8 {[%emt 0:00:38]} 34. f4 {[%emt 0:02:45] White is more active.} ({Better is} 34. Bxa6 $16 {White wants to play h4.} Bc6 35. Bc8) 34... a5 $11 {[%emt 0:00:44] The position is equal.} 35. bxa5 {[%emt 0:00:34]} Bxa5 {[%emt 0:00:05]} 36. Bf3 {[%emt 0:00:07]} h4 {[%emt 0:00:49]} 37. gxh4 {[%emt 0:00:31][%cal Bg3h4,Bh4h5,Bh5h6][%mdl 32]} b4 {[%emt 0:00:03]} 38. axb4 {[%emt 0:00:40]} Bxb4 {[%emt 0:00:03]} 39. Bf6 {[%emt 0:02:45]} Bc5 {[%emt 0:00:51]} 40. Kf2 {[%emt 0:00:00]} Kh7 {[%emt 0:00:00]} 41. h5 {[%emt 0:07:44]} Kh6 {[%emt 0:00:34]} 42. Ke2 {[%emt 0:05:07]} Bb5+ {[%emt 0:00:13]} 43. Kf2 {[%emt 0:01:38]} Be8 {[%emt 0:04:54]} 44. Bg5+ {[%emt 0:01:31]} Kg7 {[%emt 0:00:21]} 45. h6+ {[%emt 0:00:47]} Kh7 {[%emt 0:00:20]} 46. Ke2 {[%emt 0:00:07]} Bb5+ {[%emt 0:00:09]} 47. Kd2 {[%emt 0:00:19]} Bb4+ {[%emt 0:02:47]} 48. Kc2 {[%emt 0:00:54]} Bc5 {[%emt 0:00:16]} 49. Kd2 {[%emt 0:06:19]} Bb4+ {[%emt 0:00:06]} 50. Kc2 {[%emt 0:00:07] Black escapes into a draw.   Weighted Error Value: White=0.07 (flawless) /Black=0.08 (flawless) .  Mistake:       	White=2     	Black=1      Inaccurate:     	---       	Black=1      OK:         	White=15    	Black=21     Best:        	White=1     	Black=4} 1/2-1/2

[Event "Austrian Bundesliga 2023-24"]
[Site "Austria"]
[Date "2024.03.21"]
[Round "8.28"]
[White "Haba, Petr"]
[Black "Kvetny, Mark"]
[Result "1/2-1/2"]
[ECO "B92"]
[WhiteElo "2436"]
[BlackElo "2407"]
[Annotator "RC"]
[PlyCount "194"]
[EventDate "2023.10.21"]
[EventType "team-tourn"]
[EventCountry "AUT"]
[SourceTitle "playchess.com"]
[Source "ChessBase"]
[SourceQuality "1"]
[TimeControl "40/5400+30:1800+30"]

1. e4 {[%emt 0:00:30]} c5 {[%emt 0:00:30]} 2. Nf3 {[%emt 0:00:30]} d6 {[%emt 0:00:30]} 3. d4 {[%emt 0:00:30]} cxd4 {[%emt 0:00:30]} 4. Nxd4 {[%emt 0:00:30]} Nf6 {[%emt 0:00:00]} 5. Nc3 {[%emt 0:00:00]} a6 {[%emt 0:00:00]} 6. Be2 {[%emt 0:00:00]} e5 {[%emt 0:00:00]} 7. Nb3 {[%emt 0:00:00]} Be7 {[%emt 0:00:00]} 8. O-O {[%emt 0:00:00]} O-O {[%emt 0:00:00]} 9. Re1 {[%emt 0:00:00]} Be6 {[%emt 0:00:02]} 10. Bf3 {[%emt 0:00:09]} Qc7 {[%emt 0:01:35]} 11. a4 {[%emt 0:05:44]} Rc8 {[%emt 0:00:24]} 12. Bg5 {[%emt 0:08:41]} Nbd7 {[%emt 0:02:24]} 13. Nd2 {[%emt 0:03:20]} Qc6 {[%emt 0:12:18]} 14. Nf1 {[%emt 0:03:40]} Bd8 {[%emt 0:01:53]} 15. Ne3 {[%emt 0:04:34]} h6 {[%emt 0:21:44]} 16. Bxf6 {[%emt 0:00:33]} Nxf6 {[%emt 0:00:15]} 17. Ncd5 {[%emt 0:23:34]} Bxd5 {[%emt 0:02:59]} 18. exd5 {[%emt 0:00:06]} Qd7 {[%emt 0:02:08]} 19. Qd3 {[%emt 0:09:27]} Bb6 {[%emt 0:01:22]} 20. Nc4 {[%emt 0:02:00]} Qc7 {[%emt 0:04:27]} 21. b3 {[%emt 0:04:28]} Bd4 {[%emt 0:08:34]} 22. c3 {[%emt 0:13:30]} Bxc3 {[%emt 0:00:54]} 23. Qxc3 {[%emt 0:00:05]} b5 {[%emt 0:00:05]} 24. Rxe5 {[%emt 0:06:46]} dxe5 {[%emt 0:17:30]} 25. d6 {[%emt 0:00:05]} Qb8 {[%emt 0:01:06]} 26. Bxa8 {[%emt 0:05:40]} bxc4 {[%emt 0:00:59]} 27. d7 {[%emt 0:00:14]} Nxd7 {[%emt 0:09:15]} 28. Bd5 {[%emt 0:00:19]} cxb3 {[%emt 0:00:52]} 29. Qxb3 {[%emt 0:00:12]} Qxb3 {[%emt 0:00:10]} 30. Bxb3 {[%emt 0:00:01]} Rc3 {[%emt 0:01:16]} 31. Bd1 {[%emt 0:03:30]} Nc5 {[%emt 0:01:46]} 32. Rb1 {[%emt 0:03:29]} g6 {[%emt 0:00:28]} 33. Kf1 {[%emt 0:00:57]} Ra3 {[%emt 0:00:32]} 34. Rb6 {[%emt 0:02:42]} Ra1 {[%emt 0:01:09]} 35. Ke2 {[%emt 0:01:02]} Nxa4 {[%emt 0:01:17]} 36. Rc6 {[%emt 0:00:01]} Kg7 {[%emt 0:03:51]} 37. Kd2 {[%emt 0:01:22]} Nb2 {[%emt 0:03:27]} 38. Bb3 {[%emt 0:00:24]} Ra3 {[%emt 0:00:53]} 39. Kc2 {[%emt 0:00:40]} Nd3 {[%emt 0:01:00]} 40. Rc7 {[%emt 0:00:00]} Ne1+ {[%emt 0:00:00]} 41. Kb2 {[%emt 0:05:44]} Rxb3+ {[%emt 0:01:56]} 42. Kxb3 {[%emt 0:00:01]} Nxg2 {[%emt 0:00:10]} 43. Kc2 {[%emt 0:04:59]} Nf4 {[%emt 0:05:25]} 44. Kd2 {[%emt 0:00:19]} Kf6 {[%emt 0:04:03]} 45. Ra7 {[%emt 0:00:16]} Ke6 {[%emt 0:02:41]} 46. Rxa6+ {[%emt 0:07:22]} Kf5 {[%emt 0:00:07]} 47. Ke3 {[%emt 0:00:04]} h5 {[%emt 0:00:46]} 48. Ra5 {[%emt 0:04:23]} f6 {[%emt 0:00:57]} 49. Ra6 {[%emt 0:00:37]} g5 {[%emt 0:01:45]} 50. Rd6 {[%emt 0:00:31]} g4 {[%emt 0:04:26]} 51. Rd8 {[%emt 0:00:30]} Ng2+ {[%emt 0:02:24]} 52. Ke2 {[%emt 0:00:10]} Ke4 {[%emt 0:00:25]} 53. Ra8 {[%emt 0:01:18]} Nf4+ {[%emt 0:00:35]} 54. Kf1 {[%emt 0:00:03]} h4 {[%emt 0:04:17]} 55. Ra4+ {[%emt 0:03:54]} Kf5 {[%emt 0:01:17]} 56. Ra3 {[%emt 0:00:53]} Kg5 {[%emt 0:00:10]} 57. Re3 {[%emt 0:01:07]} Nh3 {[%emt 0:03:13]} 58. Re4 {[%emt 0:01:58]} Kf5 {[%emt 0:00:08]} 59. Ra4 {[%emt 0:00:03]} Ng5 {[%emt 0:00:09]} 60. Kg2 {[%emt 0:00:46]} h3+ {[%emt 0:00:25]} 61. Kh1 {[%emt 0:00:51]} Ne4 {[%emt 0:01:18]} 62. Kg1 {[%emt 0:00:02]} Nc3 {[%emt 0:01:00]} 63. Ra6 {[%emt 0:00:21]} Ne2+ {[%emt 0:00:05]} 64. Kh1 {[%emt 0:00:14]} Nd4 {[%emt 0:00:04]} 65. Rb6 {[%emt 0:00:14]} Kg5 {[%emt 0:00:09]} 66. Ra6 {[%emt 0:02:02]} f5 {[%emt 0:00:26]} 67. Ra5 {[%emt 0:01:27]} Kf4 {[%emt 0:00:19]} 68. Ra3 {[%emt 0:00:02]} Ne6 {[%emt 0:02:48]} 69. Ra4+ {[%emt 0:01:09]} Kf3 {[%emt 0:00:49]} 70. Ra5 {[%emt 0:00:16]} Kf4 {[%emt 0:00:37]} 71. Ra4+ {[%emt 0:00:01]} Nd4 {[%emt 0:00:14]} 72. Ra3 {[%emt 0:00:11]} Ke4 {[%emt 0:00:25]} 73. Re3+ {[%emt 0:00:27]} Kd5 {[%emt 0:00:05]} 74. Ra3 {[%emt 0:00:05]} Kc4 {[%emt 0:01:40]} 75. Re3 {[%emt 0:04:08]} e4 {[%emt 0:00:10]} 76. Ra3 {[%emt 0:00:01]} Kb4 {[%emt 0:00:59]} 77. Re3 {[%emt 0:01:48]} Nc2 {[%emt 0:00:09]} 78. Rg3 {[%emt 0:00:28]} Ne1 {[%emt 0:02:03]} 79. Re3 {[%emt 0:00:03]} Nd3 {[%emt 0:00:14]} 80. Kg1 {[%emt 0:00:01]} Kc3 {[%emt 0:00:11]} 81. Re2 {[%emt 0:00:02]} Nc1 {[%emt 0:00:40]} 82. Re3+ {[%emt 0:00:15]} Kd2 {[%emt 0:00:23]} 83. Ra3 {[%emt 0:00:14]} Ne2+ {[%emt 0:02:48]} 84. Kf1 {[%emt 0:00:17]} Nc3 {[%emt 0:00:23]} 85. Ra8 {[%emt 0:00:44]} Nb5 {[%emt 0:00:37]} 86. Rd8+ {[%emt 0:01:01]} Kc3 {[%emt 0:00:03]} 87. Ke2 {[%emt 0:01:51]} Nd4+ {[%emt 0:00:11]} 88. Ke3 {[%emt 0:00:04]} Nf3 {[%emt 0:00:09]} 89. Rc8+ {[%emt 0:00:09]} Kb3 {[%emt 0:01:10]} 90. Rf8 {[%emt 0:00:33]} Nxh2 {[%emt 0:00:41]} 91. Rxf5 {[%emt 0:00:04]} Kc2 {[%emt 0:01:06]} 92. Kxe4 {[%emt 0:01:42]} Kd2 {[%emt 0:00:16]} 93. Kf4 {[%emt 0:00:33]} Ke2 {[%emt 0:00:27]} 94. Kg3 {[%emt 0:00:06]} Nf1+ {[%emt 0:00:15]} 95. Kxg4 {[%emt 0:00:05]} h2 {[%emt 0:00:04]} 96. Rh5 {[%emt 0:00:05]} Kxf2 {[%emt 0:00:05]} 97. Rxh2+ {[%emt 0:00:05]} Nxh2+ {[%emt 0:00:04]} 1/2-1/2

[Event "Austrian Bundesliga 2023-24"]
[Site "Austria"]
[Date "2024.03.21"]
[Round "8.29"]
[White "Richter, Nils"]
[Black "Bures, Jaroslav"]
[Result "1-0"]
[ECO "A06"]
[WhiteElo "2400"]
[BlackElo "2407"]
[Annotator "TA"]
[PlyCount "81"]
[EventDate "2023.10.21"]
[EventType "team-tourn"]
[EventCountry "AUT"]
[SourceTitle "playchess.com"]
[Source "ChessBase"]
[SourceQuality "1"]
[TimeControl "40/5400+30:1800+30"]

{[%evp 9,81,-1,10,2,19,9,25,24,47,17,15,20,20,9,14,21,24,0,14,0,0,0,0,0,6,12,21,16,39,0,0,0,0,0,0,0,0,0,0,0,0,2,388,375,531,514,531,531,531,531,531,515,516,501,612,606,644,625,621,589,587,545,652,650,1810,4045,2702,2347,5651,5643,5606,5522,4913,959]} 1. Nf3 {[%emt 0:00:02]} d5 {[%emt 0:00:21]} 2. e3 {[%emt 0:00:07]} Nf6 {[%emt 0:06:30]} 3. c4 {[%emt 0:00:10]} e6 {[%emt 0:07:38]} 4. Nc3 {[%emt 0:00:08]} Be7 {[%emt 0:08:56]} 5. b3 {[%emt 0:00:09]} c5 {[%emt 0:02:25]} 6. Bb2 {[%emt 0:01:54]} Nc6 {[%emt 0:00:31]} 7. cxd5 {[%emt 0:02:09]} exd5 {[%emt 0:00:55]} 8. d4 {[%emt 0:01:23] White has an edge.} Bg4 {[%emt 0:01:34]} 9. Be2 {[%emt 0:02:04]} Bxf3 {[%emt 0:13:33]} 10. Bxf3 {[%emt 0:00:19]} cxd4 {[%emt 0:00:02]} 11. exd4 {[%emt 0:00:24]} O-O {[%emt 0:09:54]} 12. O-O {[%emt 0:00:31]} Qd7 {[%emt 0:00:01]} 13. Rc1 {[%emt 0:10:29]} Qf5 {[%emt 0:03:21]} 14. Na4 {[%emt 0:04:48][%cal Bc3a4,Ba4c5,Bc5d3,Bd3e5][%mdl 32]} Rac8 {[%emt 0:06:01]} 15. Nc5 {[%emt 0:08:26]} b6 {[%emt 0:04:26]} 16. Qd3 {[%emt 0:00:31]} Qxd3 {[%emt 0:05:29]} 17. Nxd3 {[%emt 0:00:02]} Nb4 {[%emt 0:00:03]} 18. Ne5 {[%emt 0:07:16]} Ne4 {[%emt 0:06:53]} ({Much weaker is} 18... Nxa2 19. Rxc8 (19. Ra1 Nc3 $14) 19... Rxc8 20. Ra1 $16) 19. Bg4 {[%emt 0:07:21]} (19. a3 $5 Na2 20. Rc6 $16) 19... Rxc1 {[%emt 0:01:42]} 20. Rxc1 {[%emt 0:00:03] Hoping for a3.} Bd6 $1 {[%emt 0:04:15]} ({But not} 20... Nxa2 $6 21. Rc7 Bb4 22. Rxa7 $16) 21. a3 $36 {[%emt 0:27:36][%mdl 2048] White has the initiative.} Bxe5 $1 {[%emt 0:00:07]} 22. axb4 {[%emt 0:00:06]} Bd6 {[%emt 0:02:37]} 23. b5 {[%emt 0:01:00]} f5 {[%emt 0:01:14]} 24. Bd1 {[%emt 0:03:51]} Kf7 {[%emt 0:01:06]} 25. Rc6 {[%emt 0:01:03] f3 is the strong threat.} Ke7 $2 {[%emt 0:01:34][%mdl 8192] This costs Black the game.} (25... Rd8 $11) 26. f3 $18 {[%emt 0:01:00]} Ng5 {[%emt 0:07:09] [#]} (26... Ra8 {might work better.} 27. fxe4 dxe4) 27. Rxd6 $1 {[%emt 0:00:32][%mdl 512] White is clearly winning.} Kxd6 {[%emt 0:00:01][%mdl 4096] Endgame. KRN-KB} 28. Ba3+ {[%emt 0:00:09]} Kd7 {[%emt 0:00:02]} 29. Bxf8 {[%emt 0:00:10]} Ne6 {[%emt 0:00:01]} 30. Ba3 {[%emt 0:01:49]} Nxd4 {[%emt 0:00:58]} 31. Bb2 {[%emt 0:00:10]} Nxb5 {[%emt 0:00:23]} 32. Bxg7 {[%emt 0:00:05]} a5 {[%emt 0:00:06]} 33. Bc2 {[%emt 0:03:39]} Ke6 {[%emt 0:00:04]} 34. Bd3 {[%emt 0:00:25]} Nd6 {[%emt 0:00:24]} 35. Bf8 {[%emt 0:00:48]} Nb7 {[%emt 0:02:23]} 36. Kf2 {[%emt 0:00:27]} Nc5 {[%emt 0:00:10]} 37. Bxc5 {[%emt 0:04:24]} bxc5 {[%emt 0:00:02]} 38. f4 {[%emt 0:00:12]} h6 {[%emt 0:01:01]} 39. Ke3 {[%emt 0:00:20]} Kf6 {[%emt 0:00:29]} 40. Kd2 {[%emt 0:00:00]} Ke6 {[%emt 0:00:00]} 41. Kc3 {[%emt 0:02:39] Weighted Error Value: White=0.07 (flawless) /Black=0.38.  Loses game:     	---       	Black=1      Mistake:       	---       	Black=1      Inaccurate:     	White=2     	Black=1      OK:         	White=12    	Black=9      Best:        	White=2     	---        Strong:       	---       	Black=2      Brilliant:      	White=1     	---} 1-0

[Event "Austrian Bundesliga 2023-24"]
[Site "Austria"]
[Date "2024.03.21"]
[Round "8.30"]
[White "Jablonicky, Martin"]
[Black "Neyman, Igor"]
[Result "1/2-1/2"]
[ECO "D02"]
[WhiteElo "2393"]
[BlackElo "2302"]
[Annotator "TA"]
[PlyCount "109"]
[EventDate "2023.10.21"]
[EventType "team-tourn"]
[EventCountry "AUT"]
[SourceTitle "playchess.com"]
[Source "ChessBase"]
[SourceQuality "1"]
[TimeControl "40/5400+30:1800+30"]

{[%evp 22,109,0,0,0,0,0,0,0,0,0,0,0,-20,0,-6,-4,-18,0,-8,-13,-14,-11,-14,-11,-52,-32,-39,67,59,99,53,50,50,62,43,49,48,91,0,66,59,84,22,88,76,95,92,237,235,255,240,411,367,463,77,75,67,67,91,97,97,300,249,295,299,256,174,166,64,165,0,172,63,65,31,63,63,63,63,63,63,85,0,0,0,0,0,0,0]} 1. d4 {[%emt 0:00:03]} d5 {[%emt 0:00:19]} 2. Nf3 {[%emt 0:00:06]} c6 {[%emt 0:01:44]} 3. Bf4 {[%emt 0:01:05]} Bf5 {[%emt 0:03:50]} 4. e3 {[%emt 0:00:38]} e6 {[%emt 0:02:24]} 5. c4 {[%emt 0:02:48]} Nf6 {[%emt 0:21:17]} 6. Nc3 {[%emt 0:00:12]} dxc4 {[%emt 0:02:17]} 7. Bxc4 {[%emt 0:00:48]} Qb6 {[%emt 0:02:23] D15: Slav Defence: 4 Nc3 a6 and gambit lines after 4 Nc3 dxc4.} 8. Qb3 {[%emt 0:06:34]} Nbd7 {[%emt 0:03:18]} 9. O-O {[%emt 0:03:39]} Be7 {[%emt 0:02:18]} 10. h3 {[%emt 0:01:14]} O-O {[%emt 0:01:24]} 11. Nh4 {[%emt 0:04:49]} Qxb3 {[%emt 0:04:28]} 12. Bxb3 $146 {[%emt 0:00:45]} ({Predecessor:} 12. axb3 Be4 13. Nxe4 Nxe4 14. Nf3 Bd6 15. Bxd6 Nxd6 16. Bd3 c5 17. Rfc1 Rfc8 18. Ne5 Nxe5 19. dxe5 {1-0 Afonasieva,A (2274)-Shcherbashin,V (2143) Tambov Korensky Memorial 29th 2020 (2)}) 12... Bd3 {[%emt 0:04:21]} 13. Rfd1 {[%emt 0:00:12]} Ba6 {[%emt 0:05:43]} 14. Nf3 {[%emt 0:00:20]} Rac8 {[%emt 0:07:44]} 15. e4 {[%emt 0:02:56]} Rfd8 {[%emt 0:00:27]} 16. Be3 {[%emt 0:04:27]} b6 {[%emt 0:01:57]} 17. g4 {[%emt 0:09:45]} h6 {[%emt 0:00:41]} 18. g5 {[%emt 0:01:18]} hxg5 {[%emt 0:00:57]} 19. Nxg5 {[%emt 0:00:14]} Nh7 {[%emt 0:02:16]} (19... c5 $5) 20. h4 {[%emt 0:09:09]} Nxg5 {[%emt 0:08:17]} 21. hxg5 {[%emt 0:00:08]} c5 {[%emt 0:01:09]} 22. d5 {[%emt 0:02:45]} c4 $1 {[%emt 0:02:05]} 23. d6 {[%emt 0:07:56]} Bf8 $1 {[%emt 0:00:50]} 24. Ba4 {[%emt 0:00:07]} e5 {[%emt 0:07:10]} ({Black should try} 24... Ne5 $15 25. d7 Rc7) 25. f4 $14 {[%emt 0:04:47]} f6 {[%emt 0:01:39]} 26. f5 {[%emt 0:05:42]} (26. gxf6 $16 gxf6 27. Rd2) 26... fxg5 $14 {[%emt 0:03:51]} 27. Bxg5 {[%emt 0:02:46]} Nf6 {[%emt 0:00:10]} 28. d7 $1 {[%emt 0:02:53]} Rc5 $1 {[%emt 0:01:09]} 29. Rac1 {[%emt 0:07:19]} Kf7 {[%emt 0:01:13]} 30. Rd2 {[%emt 0:04:33]} (30. a3 $16) 30... Be7 {[%emt 0:00:37]} (30... Bb7 $1 $11) 31. Rcd1 $14 {[%emt 0:08:52]} b5 {[%emt 0:03:29]} 32. Bxf6 {[%emt 0:00:56]} (32. b4 $16 Rc7 33. Bxf6 (33. Bxb5 Bxb5 34. Bxf6 gxf6 $11) 33... gxf6 34. Nxb5 Bxb5 35. Bxb5) 32... gxf6 {[%emt 0:00:37]} (32... Kxf6 $11 {keeps the balance.} 33. Rg2 (33. Bc2 Bb7 $11) 33... Kf7 (33... g5 $2 34. fxg6 Kg7 35. Rf1 $18)) 33. b4 $16 {[%emt 0:00:24]} Rc7 {[%emt 0:00:55]} 34. Nxb5 {[%emt 0:01:42]} Bxb5 {[%emt 0:00:19]} (34... Rb7 $16 {was necessary.} 35. Nd6+ Bxd6 36. Rxd6 Bb5 37. Bxb5 Rxb5) 35. Bxb5 $18 {[%emt 0:00:01]} Bxb4 {[%emt 0:00:24]} 36. Rh2 {[%emt 0:01:16]} c3 $2 {[%emt 0:01:06]} (36... Ba3 37. Rh7+ Kg8) 37. Ba4 $18 {[%emt 0:01:22]} c2 {[%emt 0:01:38]} 38. Rxc2 $2 {[%emt 0:01:06]} (38. Bxc2 $18 {is more deadly.} Kg7 39. Ba4) 38... Rxc2 $16 {[%emt 0:00:27]} 39. Bxc2 {[%emt 0:00:00]} Ke7 {[%emt 0:00:00]} 40. Ba4 {[%emt 0:00:00]} Bc5+ {[%emt 0:00:00]} 41. Kg2 {[%emt 0:00:25]} Bb6 $2 {[%emt 0:10:48] [#]} (41... Rg8+ $16 {might work better.} 42. Kf3 Rb8) 42. Rc1 $1 $18 {[%emt 0:00:20]} Rg8+ {[%emt 0:12:23]} 43. Kf3 {[%emt 0:00:07]} Bd8 {[%emt 0:03:25]} 44. Rc8 {[%emt 0:00:12]} Rh8 {[%emt 0:00:46]} 45. Kg4 {[%emt 0:04:06]} (45. Rc6 $18 {aiming for Re6+.} Kxd7 46. Rxf6+ Kc8 47. Rc6+ Kb7 48. Re6) 45... Rg8+ {[%emt 0:01:22]} ({Black should play} 45... Rh2 $1 $14) 46. Kf3 {[%emt 0:06:11]} Rh8 $1 {[%emt 0:00:05]} 47. Ra8 {[%emt 0:00:05]} (47. Rc6 $18 {Black must now prevent Re6+.} Kxd7 48. Rxf6+ Kc8 49. Rc6+ Kb8 50. Bb3) 47... Rh3+ $1 $14 {[%emt 0:01:21]} 48. Kg2 {[%emt 0:00:55]} Ra3 {[%emt 0:02:18]} 49. Rxa7 {[%emt 0:03:38]} Rxa2+ {[%emt 0:00:05]} 50. Kf3 {[%emt 0:00:03]} Ra3+ {[%emt 0:01:02]} 51. Ke2 {[%emt 0:00:07]} Re3+ {[%emt 0:00:45]} 52. Kd2 {[%emt 0:04:39]} ({Better is} 52. Kxe3 $16 {Threatening mate with Kd3.} Bb6+ 53. Kd3 Bxa7 54. Kc4) 52... Rxe4 $11 {[%emt 0:00:13]} 53. Ra6 {[%emt 0:00:04]} Rd4+ {[%emt 0:00:37]} 54. Ke2 {[%emt 0:00:10]} Rd6 {[%emt 0:00:31]} 55. Rxd6 {[%emt 0:01:14]} 1/2-1/2